Cogmind - Beta 14 @@@ ROGUE MODE // 2024.10.31 @ 23:29:45 Player: Xellophane Result: Destroyed by as-25451 with Assembled Heavy Rifle Performance ------------- Evolutions (0) 0 Regions Visited (2) 400 Robots Destroyed (29) 145 Value Destroyed (472) 472 Prototype IDs (2) 40 Alien Tech Used (0) 0 Bonus (0) 0 TOTAL SCORE: 1057 Bonus ------- None Cogmind --------- Core Integrity 0/250 Matter 300/300 Energy 250/250 System Corruption 0% Temperature Cool (0) Movement Walking (120) Location -10/Mines Parts ------- > --- POWER (1) -------- Ion Engine > --- PROPULSION (2) --- Aluminum Leg Aluminum Leg > --- UTILITY (2) ------ Medium Storage Unit Signal Interpreter > --- WEAPON (2) ------- Light Assault Rifle Light Assault Rifle > --- INVENTORY (10) --- Light Treads Aluminum Leg Aluminum Leg Heat Sink Seismic Detector Transport Network Coupler ECM Suite Mining Laser Peak State ------------ > --- POWER ------------ Ion Engine > --- PROPULSION ------- Light Treads Light Treads > --- UTILITY ---------- Small Storage Unit Seismic Detector > --- WEAPON ----------- Medium Laser Assault Rifle > --- INVENTORY -------- Light Ion Engine Aluminum Leg Aluminum Leg Light Assault Rifle Mining Laser [Rating: 7] Favorites ----------- Power Light Ion Engine Engine Light Ion Engine Propulsion Light Treads Treads Light Treads Leg Aluminum Leg Utility Small Storage Unit Device Seismic Detector Storage Small Storage Unit Processor Signal Interpreter Weapon Light Assault Rifle Energy Gun Medium Laser Ballistic Gun Light Assault Rifle Build | -11 -10 -10 ------- Run | Yrd Mat Min Slots Evolved . | . . . Power . | . . . Propulsion . | . . . Utility . | . . . Weapon . | . . . Parts Attached 19 | 8 11 . Power 5 | 2 3 . Engine 5 | 2 3 . Core . | . . . Reactor . | . . . Propulsion 6 | 2 4 . Treads 3 | 2 1 . Leg 3 | . 3 . Wheel . | . . . Hover . | . . . Flight . | . . . Utility 4 | 2 2 . Device 1 | 1 . . Storage 2 | 1 1 . Processor 1 | . 1 . Hackware . | . . . Protection . | . . . Artifact . | . . . Weapon 4 | 2 2 . Energy Gun 1 | 1 . . Energy Cannon . | . . . Ballistic Gun 3 | 1 2 . Ballistic Cannon . | . . . Launcher . | . . . Special Weapon . | . . . Impact Weapon . | . . . Slashing Weapon . | . . . Piercing Weapon . | . . . Special Melee Weapon . | . . . Unidentified Prototypes . | . . . Parts Lost 5 | . 5 . Power 2 | . 2 . Propulsion 2 | . 2 . Utility . | . . . Weapon 1 | . 1 . Highest Loss Streak 3 | . 3 . To Critical Strikes . | . . . Average Slot Usage (%) 99 | . 99 100 Engine 14 | . 14 14 Treads 23 | . 25 . Leg 4 | . 2 28 Device 8 | . 9 . Storage 14 | . 14 14 Processor 5 | . 4 14 Energy Gun 6 | . 6 . Ballistic Gun 21 | . 21 28 Peak Build Rating 7 | 7 7 7 Average Rating 6 | 5 6 7 On Entrance 4 | . 7 7 Naked Turns . | . . . Heaviest Build 17 | 15 17 17 Greatest Support 40 | 40 40 20 Greatest Overweight (x) 2 | 2 . . Average Overweight (x) . | . . . Largest Inventory Capacity 10 | 8 10 10 Average Capacity 8 | 7 8 10 Most Carried 8 | 7 8 8 Average Carried 6 | 4 7 8 Final Capacity 10 | 8 10 10 Final Carried 8 | 5 8 8 Class Distribution -------------------- 100% | Mutant Dominant Class ---------------- Mutant | -10/Materials Mutant | -10/Mines Resources | -11 -10 -10 ----------- Run | Yrd Mat Min Matter Collected 615 | 329 286 . Remotely . | . . . Salvage Created 805 | 187 618 . Parts 63 | 17 46 . Haulers Intercepted 1 | . 1 . Recyclers Shooed 3 | 1 2 . Parts Field Recycled . | . . . Retrieved Matter . | . . . Parts Self-Destructed . | . . . Prevented . | . . . Kills | -11 -10 -10 ------- Run | Yrd Mat Min Combat Hostiles Destroyed 18 | . 18 . Guns 18 | . 18 . Classes Destroyed 6 | 3 3 . Worker 3 | 2 1 . Tunneler 5 | 5 . . Hauler 1 | . 1 . Recycler 2 | 1 1 . Swarmer 8 | . 8 . Grunt 10 | . 10 . Best Kill Streak 4 | 3 4 . Combat Bots Only 3 | . 3 . Max Kills in Single Turn 1 | 1 1 . Gunslinging . | . . . Exploded . | . . . Melee . | . . . Uniques/NPCs Destroyed . | . . . Combat | -11 -10 -10 -------- Run | Yrd Mat Min Hostile Shots Fired 142 | . 138 4 Missed 46 | . 44 2 Damage Taken 975 | . 945 30 Core 260 | . 240 20 Absorbed by Shields . | . . . Core Remaining (%) 100 | 100 . . Volleys Fired 84 | 18 66 . Largest 2 | 2 2 . Hottest 70 | 70 70 . Shots Fired 168 | 36 132 . Gun 168 | 36 132 . Cannon . | . . . Launcher . | . . . Special . | . . . Kinetic 142 | 18 124 . Thermal 26 | 18 8 . Explosive . | . . . Electromagnetic . | . . . Robot Hit Streak 8 | 8 7 . Robot Miss Streak 3 | 3 3 . Penetration Max . | . . . Secondary Targets 5 | . 5 . Max Gunslinging Chain 1 | . 1 . Shots Hit Robots 103 | 23 80 . Core Hits 45 | 9 36 . Critical Kills 1 | . 1 . Critical Parts Destroyed . | . . . Critical Strikes 3 | 2 1 . Burn 2 | 2 . . Destroy 1 | . 1 . Melee Attacks . | . . . Impact . | . . . Slashing . | . . . Piercing . | . . . Sneak Attacks . | . . . Combat Hostiles . | . . . Follow-up Attacks . | . . . Damage Inflicted 1127 | 286 841 . Guns 1121 | 286 835 . Cannons . | . . . Explosions . | . . . Melee . | . . . Ramming 6 | . 6 . Kinetic 881 | 110 771 . Thermal 240 | 176 64 . Explosive . | . . . Electromagnetic . | . . . Impact . | . . . Slashing . | . . . Piercing . | . . . Highest Corruption . | . . . Average Corruption . | . . . Corruption Purged . | . . . Corruption Blocked . | . . . Overload Shots . | . . . Overflow Damage . | . . . Projectiles . | . . . Explosions . | . . . Melee . | . . . Knockbacks 1 | . 1 . Impact 1 | . 1 . Kinetic . | . . . Secondary . | . . . Self-Inflicted Damage . | . . . Shots . | . . . Rammed . | . . . Targets Rammed 1 | . 1 . Kicked . | . . . Crushed 1 | . 1 . Highest Temperature 47 | 47 39 . Average Temperature 14 | 21 10 . Received Heat Transfer 372 | . 372 . Siege Activations . | . . . Robots Corrupted . | . . . Combat Hostiles . | . . . Parts Fried . | . . . Impact Corruptions . | . . . Robots Melted . | . . . Combat Hostiles . | . . . Parts Melted 4 | 3 1 . Heat Transferred 851 | 666 185 . Parts Sabotaged . | . . . Parts Stolen . | . . . Parts Stripped . | . . . Power Chain Reactions . | . . . Alert | -11 -10 -10 ------- Run | Yrd Mat Min Peak Influence 312 | 40 312 121 Initial 121 | . 26 121 Average 101 | 22 114 121 Maximum Alert Level 1 | . 1 . Low Security (%) 86 | 100 83 100 Level 1 13 | . 16 . Level 2 . | . . . Level 3 . | . . . Level 4 . | . . . Level 5 . | . . . High Security . | . . . Max Security . | . . . Squads Dispatched 3 | . 3 . Investigation 3 | . 3 . Extermination . | . . . Reinforcement . | . . . Assault . | . . . Garrison . | . . . Intercept . | . . . Searches Triggered . | . . . Construction Impeded . | . . . Haulers Reinforced . | . . . Active Scanning Responses . | . . . Cargo Convoy Interrupts . | . . . Stealth | -11 -10 -10 --------- Run | Yrd Mat Min Distress Signals 2 | . 2 . Communications Jammed . | . . . Distress Signals . | . . . Times Spotted 39 | . 35 4 Peak Tracking Total 5 | . 5 4 Tactical Retreats 5 | . 5 . Traps | -11 -10 -10 ------- Run | Yrd Mat Min Traps Triggered 2 | . 2 . Indirectly . | . . . Trap Hack Attempts . | . . . Triggered . | . . . Disarmed . | . . . Reprogrammed . | . . . Reused . | . . . Traps Extracted . | . . . Installed . | . . . Triggered . | . . . Machines | -11 -10 -10 ---------- Run | Yrd Mat Min Machines Disabled . | . . . Max in Single Turn . | . . . Machines Repaired . | . . . Machines Dismantled . | . . . Machines Sabotaged . | . . . Overloaded Fab Kills . | . . . Hacking | -11 -10 -10 --------- Run | Yrd Mat Min Machines Accessed 4 | . 4 . Terminals 4 | . 4 . Fabricators . | . . . Repair Stations . | . . . Recycling Units . | . . . Scanalyzers . | . . . Garrison Access . | . . . Total Hacks 12 | . 12 . Successful 3 | . 3 . Failed 8 | . 8 . Catastrophic 3 | . 3 . Database Lockouts 1 | . 1 . Manual 10 | . 10 . Terminals 12 | . 12 . Fabricators . | . . . Repair Stations . | . . . Recycling Units . | . . . Scanalyzers . | . . . Garrison Access . | . . . Terminal Hacks 3 | . 3 . Prototype ID Bank 1 | . 1 . Branch Access Points 1 | . 1 . Terminal Index 1 | . 1 . Fabricator Hacks . | . . . Repair Station Hacks . | . . . Recycling Unit Hacks . | . . . Scanalyzer . | . . . Garrison Access Hacks . | . . . Unauthorized Hacks . | . . . Terminals . | . . . Fabricators . | . . . Repair Stations . | . . . Recycling Units . | . . . Scanalyzers . | . . . Garrison Access . | . . . Data Cores Recovered . | . . . Used . | . . . Hacking Detections 3 | . 3 . Full Trace Events 1 | . 1 . Feedback Events . | . . . Feedback Blocked . | . . . Robot Schematics Acquired . | . . . Robots Built . | . . . Authchips . | . . . Time . | . . . Total Robot Build Rating . | . . . Part Schematics Acquired . | . . . Parts Built . | . . . Authchips . | . . . Time . | . . . Total Part Build Rating . | . . . Parts Repaired . | . . . Time . | . . . Parts Recycled . | . . . Recycled Matter . | . . . Retrieved Matter . | . . . Retrieved Components . | . . . Parts Scanalyzed . | . . . Part Schematics Acquired . | . . . Parts Damaged . | . . . Bothacking | -11 -10 -10 ------------ Run | Yrd Mat Min Used RIF Installer . | . . . Robots Hacked . | . . . Non-combat . | . . . Combat . | . . . Robot Hacks Applied . | . . . Relay Couplers Released . | . . . Fabnet Peak Effective % . | . . . Robots Rewired . | . . . Allies Hacked . | . . . Hacks Repelled . | . . . Allies | -11 -10 -10 -------- Run | Yrd Mat Min Total Allies . | . . . Largest Group . | . . . Highest-Rated Group . | . . . Highest-Rated Ally . | . . . Total Orders . | . . . Ally Attacks . | . . . Total Damage . | . . . Kills . | . . . Allies Corrupted . | . . . Allies Melted . | . . . Intel | -11 -10 -10 ------- Run | Yrd Mat Min Robot Analysis Total . | . . . Derelict Logs Recovered . | . . . Drone Launches . | . . . Drone Recoveries . | . . . Exploration | -11 -10 -10 ------------- Run | Yrd Mat Min Turns Passed 1458 | 217 1161 80 Spaces Moved 729 | 95 573 61 Core 9 | 9 . . Treads 610 | 86 524 . Legs 110 | . 49 61 Wheels . | . . . Hover . | . . . Flight . | . . . Fastest Speed 50 | 50 120 120 Average Speed 152 | 152 156 120 Slowest Speed 160 | 160 160 120 Overloaded Moves . | . . . Propulsion Burnouts . | . . . Robots Hopped . | . . . Cave-ins Triggered . | . . . Exploration Rate (%) 31 | 5 72 17 Regions Visited 2 Branch Regions 1 Pre-discovered Areas . | . . . Known Exits Taken 1 | . 1 . Unknown Exits Taken 1 | 1 . . Scrap Searched . | . . . Spaces Dug . | . . . Terrain Destroyed . | . . . Melee . | . . . Projectile . | . . . AOE . | . . . Terrain Rammed . | . . . Walls Destroyed . | . . . Machines Disabled . | . . . Actions | -11 -10 -10 --------- Run | Yrd Mat Min Total 918 | 130 721 67 Wait 63 | . 57 6 Move 727 | 94 572 61 Hop . | . . . Pick Up 17 | 7 10 . Fast Attach 8 | 7 1 . Attach 6 | 1 5 . Detach 1 | 1 . . Swap 5 | . 5 . Drop 6 | 2 4 . Fire 84 | 18 66 . Melee . | . . . Ram . | . . . Kick . | . . . Crush 1 | . 1 . Escape Stasis . | . . . Rewire . | . . . Trap . | . . . Miscellaneous . | . . . Route ------- -11/Scrapyard -10/Materials (discovered 5 exits: *Mat x3 / *Min x2) -10/Mines History --------- Turn | Location | Event 30 | -11/Scrapyard | Discovered new exit (range 16) 218 | -11/Scrapyard | Entered Materials 314 | -10/Materials | Build established: Mutant 497 | -10/Materials | Discovered new exit (range 3) 518 | -10/Materials | Identified exit to Mines 909 | -10/Materials | Discovered new exit (range 4) 963 | -10/Materials | Identified exit to Materials 992 | -10/Materials | Central database locked down 1071 | -10/Materials | Core integrity fell below 50% 1120 | -10/Materials | Lost 3 parts (1p1n1w) 1156 | -10/Materials | Discovered exit to Materials (range 15) 1287 | -10/Materials | Core integrity fell below 20% 1379 | -10/Materials | Entered Mines 1445 | -10/Mines | Assembled infested the area 1459 | -10/Mines | Destroyed by as-25451 with Assembled Heavy Rifle Last Messages --------------- 01285_ G-34 Mercenary destroyed. 01285_ Switching to secondary target: G-34 Mercenary. 01295_ G-34 Mercenary destroyed. 01304_ Acquired Aluminum Leg. 01306_ Acquired 71 matter. 01312_ Acquired Aluminum Leg. 01320_ K-01 Serf cleans the Electrolysis Chamber. 01351_ S-10 Pest destroyed. 01351_ Switching to secondary target: S-10 Pest. 01354_ S-10 Pest destroyed. 01357_ Acquired 10 matter. 01357_ K-01 Serf collects debris. LOCATION=MINES GOAL=ESCAPE Something is scanning the area. 01387_ K-01 Serf collects debris. 01412_ K-01 Serf cleans the Laser Drill. 01413_ K-01 Serf collects debris. 01445_ ALERT: Infestation in the mines, dispatching Demolisher response squad. Map ----- +----------------------------------------------------+ | ???????????????????????????????????????? | | ???????????????????????????????????????? | | ??????????????##########???????????????? | | ??????????????# ######??????????? | | ??????????????# ## #??????????? | | ??????????????# """ # ##??????????? | | ??????????????# """ # #???????????? | | ??????????????# """ # #???????????? | | ??????????????# # #???????????? | | ??????????????# """ # #???#####???? | | ??????????????# """ ##?## ##??? | | ??????????????# """ ## ### ##?? | | ??????????????# ### #?? | | ??????????????# #?# #?? | | ??????????????##########?## #?? | | ??????????????????????????## ##?? | | ???????????????????????????## ##??? | | ????????????????????????????#### ###???? | | ?????????????????????????????### #?????? | | ?????????????????????????????# #?????? | | ????????##???????????????????# ###?????? | | ????????# ??????????????##### #???????? | | ????????# ??????????????# #???????? | | ???????## ?????????????# #####???????? | | ????####$ #########????# #???????????? | | ????# a a @ ###### #???????????? | | ???# aa t #???????????? | | ???# ######### ########???????????? | | ???## ?????????# #??????????????????? | | ????## ??????????# #??????????????????? | | ?????#????????????# #??????????????????? | | ??????????????????# ??????????????????? | | ?????????????????? ??????????????????? | | ?????????????????? ??????????????????? | | ?????????????????? ??????????????????? | | ?????????????????? ??????????????????? | | ??????????????????# ??????????????????? | | ???????????????????# ??????????????????? | | ???????????????????? ??????????????????? | | ???????????????????? ??????????????????? | | ???????????????????? ??????????????????? | | ???????????????????? ??????????????????? | | ???????????????????????????????????????? | | ???????????????????????????????????????? | | ???????????????????????????????????????? | | ???????????????????????????????????????? | | ???????????????????????????????????????? | | ???????????????????????????????????????? | | ???????????????????????????????????????? | | ???????????????????????????????????????? | +----------------------------------------------------+ Best States ------------- Heat Dissipation 25 Energy Generation 10 Energy Capacity 250 Matter Stores 300 Matter Capacity 300 Sight Range 16 Terrain Scan Density 10 Evasion (%) 55 Recoil Reduction 2 Item Schematics ----------------- None Robot Schematics ------------------ None Fabricated ------------ Nothing Alien Tech Used ----------------- None Achievements -------------- None Challenges ------------ None Game ------ Seed ArmorOvertunedCalibrator Manual? 0 Play Time 00:17:06 Cumulative 9.8 hours Start 2024.10.31 @ 23:11:34 End 2024.10.31 @ 23:29:45 Sessions 1 Manual Loads 0 Difficulty Rogue Special Mode None Game No. 16 Rogue 16 Adventurer 0 Explorer 0 Win Type - Total 0 Types 0/0/0/0/0/0/0/0/0 Lore% 4 Gallery% 8 Achievement% 13 Wizard Run 0 Options --------- Layout 0 ASCII 0 Keyboard 1 Movement Numpad Keybinds 0 Fullscreen 2 Font 18/SmallcapsGlow Map View 76x50 Zoom Use 0% Tactical HUD 1 Map Filters NONE Filters NONE Steam 1 RUN: ad7562ca-2759-4ce6-8fb8-b50c0f0d80b7